bitfinex/quotes_SOLUSD_20251103
["timestamp","ask_amount","ask_price","bid_price","bid_amount"]
[1762154325824,0.68,176.45,176.43,5.66765836]
[1762154326425,4.4693617,176.45,176.43,5.66765836]
[1762154326631,0.68,176.45,176.42,5.66829157]
[1762154326932,0.68,176.44,176.42,5.66829157]
[1762154327411,3.7893617,176.45,176.42,5.66829157]
[1762154327606,4.4693617,176.45,176.42,5.66829157]
[1762154327804,0.68,176.44,176.42,5.66829157]
[1762154328520,3.7893617,176.45,176.42,5.66829157]
[1762154328723,4.4693617,176.46,176.42,5.66829157]
[1762154329027,3.7893617,176.45,176.42,5.66829157]
[1762154329227,4.4693617,176.45,176.42,11.3320474]
[1762154329408,0.68,176.45,176.42,11.3320474]
[1762154329601,0.68,176.45,176.42,5.66829157]
[1762154329799,4.4693617,176.45,176.43,5.66375583]
[1762154330010,0.68,176.45,176.43,5.66375583]
[1762154330227,0.68,176.45,176.42,11.3320474]
[1762154330603,3.7893617,176.45,176.43,5.66375583]
[1762154330809,3.7893617,176.46,176.43,5.66375583]
[1762154331210,4.4693617,176.46,176.43,5.66375583]
[1762154331414,3.7893617,176.45,176.43,5.66375583]
[1762154332017,3.7955168,176.45,176.44,5.66764905]
[1762154332211,30.38082769,176.49,176.44,5.66764905]
[1762154332212,3.7955168,176.48,176.44,25.50052752]
[1762154332409,4.47470954,176.48,176.44,5.66764905]
[1762154332721,4.47470954,176.47,176.44,5.66764905]
[1762154332914,3.79470954,176.46,176.44,5.66764905]
[1762154333300,3.79470954,176.46,176.44,11.33140488]
[1762154333504,3.79470954,176.47,176.44,11.33140488]
[1762154333710,0.68,176.46,176.44,11.33140488]
[1762154333938,5.66375583,176.45,176.39,20.592]
[1762154334136,5.66375583,176.42,176.35,19.84641795]
[1762154334443,9.46136443,176.41,176.35,25.51017378]
[1762154334741,0.68,176.41,176.35,5.67054153]
[1762154335039,0.68,176.41,176.35,11.33429736]
[1762154335246,9.46309592,176.4,176.35,5.67054153]
[1762154335839,0.68,176.39,176.35,11.33429736]
[1762154336536,0.68,176.39,176.35,25.5106512]
[1762154337345,0.68,176.39,176.36,5.66375583]
[1762154337834,0.68,176.39,176.37,5.6698985]
[1762154338435,3.79740156,176.4,176.37,13.56403323]
[1762154338729,7.89413473,176.4,176.34,0.2]
[1762154338912,7.89413473,176.36,176.34,0.2]
[1762154339114,7.89413473,176.35,176.34,0.2]
[1762154339742,0.68,176.35,176.34,0.2]
[1762154339932,4.47703904,176.35,176.34,5.8708631]
[1762154340347,12.37117377,176.35,176.34,0.2]
[1762154340517,9.78882769,176.34,176.23,0.77744027]
[1762154340716,7.89413473,176.3,176.25,5.87373318]
[1762154341040,3.79703904,176.32,176.29,7.89413473]
[1762154341348,3.79703904,176.31,176.29,7.89413473]
[1762154341648,12.37117377,176.32,176.26,7.89413473]
[1762154341848,3.79703904,176.31,176.26,7.89413473]
[1762154342033,0.68,176.3,176.26,7.89413473]
[1762154342341,4.74439601,176.36,176.25,20.05813034]
[1762154342342,3.79703904,176.32,176.29,7.89413473]
[1762154342545,0.68,176.34,176.29,7.89413473]
[1762154342546,3.79703904,176.33,176.29,7.89413473]
[1762154343052,7.89413473,176.31,176.25,27.95226507]
[1762154343418,7.89413473,176.28,176.25,0.2]
[1762154343756,9.78882769,176.25,176.2,0.2]
[1762154344059,21.46865436,176.25,176.2,5.87536864]
[1762154344348,0.68,176.27,176.22,7.89413473]
[1762154345535,8.57413473,176.27,176.21,7.89413473]
[1762154345754,0.68,176.27,176.22,7.89413473]
[1762154345964,3.78070054,176.28,176.26,7.89413473]
[1762154346253,0.68,176.27,176.22,7.89413473]
[1762154346762,4.45500139,176.29,176.24,7.89413473]
[1762154347122,7.89413473,176.26,176.21,5.67504681]
[1762154347436,7.89413473,176.25,176.2,0.2]
[1762154347626,7.89413473,176.24,176.2,5.87535566]
[1762154347826,0.68,176.24,176.2,5.87535566]
[1762154348028,0.68,176.23,176.2,5.87535566]
[1762154348330,0.68,176.23,176.2,0.2]
[1762154348551,0.68,176.23,176.2,5.87534564]
[1762154348741,0.68,176.23,176.2,0.2]
[1762154348941,8.57413473,176.23,176.2,0.2]
[1762154349145,0.68,176.23,176.2,0.2]
[1762154349368,0.68,176.22,176.2,0.2]
[1762154349745,9.78882769,176.23,176.2,0.2]
[1762154350269,0.68,176.22,176.2,0.2]
[1762154352059,21.4467623,176.21,176.14,5.67708004]
[1762154352261,7.89413473,176.19,176.14,5.67708004]
[1762154352469,12.33793461,176.2,176.14,13.57121477]
[1762154352674,12.33793461,176.2,176.15,7.89413473]
[1762154352675,0.68,176.19,176.15,7.89413473]
[1762154352873,1.44379988,176.2,176.15,7.89413473]
[1762154353282,4.74439601,176.25,176.19,7.89413473]
[1762154353283,38.27496242,176.25,176.19,7.89413473]
[1762154353576,7.89413473,176.24,176.18,7.89413473]
[1762154353952,4.74439601,176.27,176.21,13.56918154]
[1762154354276,6.21472674,176.3,176.22,7.89413473]
[1762154354277,17.68296242,176.28,176.22,7.89413473]
[1762154354582,4.74439601,176.3,176.25,7.89413473]
[1762154354583,9.78882769,176.3,176.25,7.89413473]
[1762154354872,7.89413473,176.27,176.21,13.56918154]
[1762154355270,0.68,176.26,176.21,13.56918154]
[1762154356955,0.68,176.26,176.22,7.89413473]
[1762154357667,0.68,176.26,176.23,5.67440276]
[1762154359184,4.74439601,176.29,176.23,27.75454441]
[1762154359357,4.74439601,176.3,176.26,7.89413473]
[1762154359563,15.2132237,176.31,176.26,7.89413473]
[1762154359855,0.68,176.3,176.26,13.56733865]
[1762154360069,0.68,176.3,176.2,20.592]
[1762154360070,6.35216827,176.3,176.22,5.67462134]
[1762154360281,0.68,176.3,176.25,7.89413473]
[1762154360483,0.68,176.3,176.27,7.89413473]
[1762154360867,0.68,176.3,176.26,7.89413473]
[1762154361374,4.74439601,176.32,176.27,8.61413473]
[1762154361564,0.68,176.32,176.27,8.61413473]
[1762154361880,0.68,176.31,176.27,13.56719226]
[1762154362383,4.74439601,176.33,176.29,7.89413473]
[1762154362597,4.74439601,176.34,176.32,7.89413473]
[1762154362762,4.74439601,176.34,176.3,0.72]
[1762154362763,4.74439601,176.38,176.33,8.61413473]
[1762154363078,4.74439601,176.4,176.37,7.89413473]
[1762154363290,4.74439601,176.4,176.38,7.89413473]
[1762154363492,4.74439601,176.41,176.38,7.89413473]
[1762154363669,4.74439601,176.41,176.37,7.89413473]
[1762154363872,13.31853074,176.42,176.38,5.66957704]
[1762154364074,0.68,176.41,176.38,5.66957704]
[1762154364885,3.76860283,176.4,176.36,7.89413473]
[1762154365095,3.76860283,176.39,176.36,7.89413473]
[1762154365265,3.76860283,176.38,176.36,7.89413473]
[1762154365598,3.76860283,176.37,176.35,7.89413473]
[1762154365765,3.76860283,176.36,176.35,5.67054153]
[1762154366091,0.1,176.45,176.35,28.30808425]
[1762154366403,0.77,176.45,176.41,7.89413473]
[1762154366562,0.1,176.45,176.42,7.89413473]
[1762154366764,0.1,176.45,176.38,20.592]
[1762154366983,0.1,176.45,176.42,7.89413473]
[1762154367363,0.1,176.45,176.43,7.89413473]
[1762154367560,0.1,176.45,176.44,7.89413473]
[1762154367865,0.1,176.45,176.44,5.66764905]
[1762154368083,0.1,176.45,176.42,5.66799496]
[1762154368286,0.1,176.45,176.43,7.89413473]
[1762154369062,0.1,176.45,176.42,13.56212969]
[1762154369266,0.77,176.45,176.4,5.66867708]
[1762154369491,8.66413473,176.45,176.4,5.66867708]
[1762154370085,0.67,176.44,176.4,5.66867708]
[1762154370286,8.66413473,176.45,176.4,5.66867708]
[1762154371285,7.99413473,176.45,176.4,5.66867708]
[1762154371783,0.67,176.44,176.4,5.66867708]
[1762154371964,0.1,176.45,176.4,14.24281181]
[1762154372160,0.77,176.45,176.4,14.24281181]
[1762154372661,7.89413473,176.44,176.38,34.15550049]
[1762154372888,7.89413473,176.42,176.38,5.66936576]
[1762154373090,16.22619318,176.45,176.38,5.66936576]
[1762154373091,7.89413473,176.43,176.38,5.66936576]
[1762154373562,0.67,176.42,176.38,5.66936576]
[1762154374270,0.67,176.42,176.37,7.89413473]
[1762154374480,8.56413473,176.42,176.36,13.56435473]
[1762154375181,7.89413473,176.41,176.36,5.67022]
[1762154375386,8.56413473,176.41,176.36,5.67022]
[1762154375990,0.67,176.41,176.36,7.89413473]
[1762154376164,0.68,176.4,176.35,13.56467626]
[1762154376364,8.57413473,176.42,176.36,7.89413473]
[1762154377381,10.41235401,176.44,176.35,19.84689537]
[1762154377382,8.57413473,176.41,176.35,13.56467626]
[1762154377767,8.57413473,176.41,176.35,27.7410301]
[1762154377966,3.7783511,176.4,176.35,27.7410301]
[1762154378169,3.7783511,176.4,176.36,7.89413473]
[1762154378490,3.7783511,176.41,176.36,8.57413473]
[1762154378698,3.7783511,176.4,176.38,7.89413473]
[1762154378898,3.7783511,176.42,176.38,7.89413473]
[1762154379102,3.7783511,176.41,176.38,7.89413473]
[1762154379284,3.7783511,176.4,176.36,8.57413473]
[1762154379486,7.89413473,176.41,176.35,27.7410301]
[1762154379683,11.67248583,176.41,176.35,27.7410301]
[1762154379882,12.35248583,176.4,176.35,5.67054153]
[1762154380192,11.67248583,176.39,176.35,5.67054153]
[1762154380489,0.68,176.39,176.35,5.67054153]
[1762154381178,0.68,176.39,176.35,13.56467626]
[1762154381370,0.68,176.39,176.36,7.89413473]
[1762154381572,0.68,176.39,176.35,6.35054153]
[1762154381773,0.68,176.39,176.35,13.56467626]
[1762154381973,0.68,176.39,176.35,5.67054153]
[1762154382197,0.68,176.39,176.35,13.56467626]
[1762154385407,8.57413473,176.39,176.33,13.56514743]
[1762154385582,7.89413473,176.37,176.33,5.6710127]
[1762154385987,8.57413473,176.37,176.33,5.6710127]
[1762154386778,8.57413473,176.37,176.32,5.67150635]
[1762154387179,0.68,176.37,176.32,13.56564108]
[1762154387388,0.68,176.37,176.32,14.24564108]
[1762154387799,0.68,176.37,176.32,13.56564108]
[1762154387997,8.57413473,176.37,176.32,5.67150635]
[1762154388505,0.68,176.37,176.32,13.56564108]
[1762154388692,0.68,176.37,176.32,14.24564108]
[1762154389202,8.57413473,176.37,176.31,7.89413473]
[1762154389499,7.89413473,176.36,176.31,7.89413473]
[1762154389706,8.57413473,176.36,176.3,28.42618575]
[1762154389894,0.68,176.35,176.3,28.42618575]
[1762154390405,0.68,176.35,176.3,27.74618575]
[1762154390809,8.57413473,176.35,176.3,19.85205102]
[1762154390980,0.68,176.34,176.3,19.85205102]
[1762154391686,0.68,176.34,176.3,27.74618575]
[1762154392005,0.68,176.34,176.3,28.42618575]
[1762154392318,0.68,176.34,176.3,5.67214974]
[1762154392509,8.57413473,176.34,176.3,5.67214974]
[1762154392693,12.35439199,176.34,176.3,5.67214974]
[1762154392894,0.68,176.33,176.3,5.67214974]
[1762154393091,7.89413473,176.32,176.27,28.48613473]
[1762154393307,7.89413473,176.32,176.27,7.89413473]
[1762154393513,8.57413473,176.31,176.25,8.57413473]
[1762154393723,7.89413473,176.3,176.25,0.68]
[1762154393905,0.68,176.29,176.25,8.57413473]
[1762154394519,0.68,176.29,176.26,5.67339849]
[1762154394714,0.68,176.29,176.25,5.67371932]
[1762154394922,7.89413473,176.28,176.23,5.67415762]
[1762154395282,0.68,176.27,176.23,5.67415762]
[1762154395484,0.68,176.27,176.22,13.56869614]
[1762154395790,0.68,176.27,176.22,14.24869614]
[1762154397588,8.57413473,176.27,176.21,7.89413473]
[1762154397789,7.89413473,176.25,176.2,5.67532586]
[1762154398000,7.89413473,176.25,176.2,13.56946059]
[1762154398199,0.68,176.24,176.2,5.67532586]
[1762154398395,8.57413473,176.24,176.17,26.26833036]
[1762154398596,7.89413473,176.22,176.17,5.67633036]
[1762154398808,11.67439199,176.22,176.17,5.67633036]
[1762154399012,0.68,176.21,176.17,5.67633036]
[1762154399318,0.68,176.21,176.16,14.25063971]
[1762154399611,3.78025726,176.22,176.19,13.56982574]
[1762154399825,3.78025726,176.24,176.2,7.89413473]
[1762154400111,4.46025726,176.24,176.19,13.56982574]
[1762154400418,10.13970899,176.23,176.19,5.67569101]
[1762154400910,0.68,176.22,176.19,5.67569101]
[1762154401432,0.68,176.22,176.17,5.67624423]
[1762154401637,4.46025726,176.23,176.19,11.3550077]
[1762154401835,3.78025726,176.23,176.19,11.3550077]
[1762154402001,3.78025726,176.24,176.19,11.3550077]
[1762154402201,3.78025726,176.23,176.19,11.3550077]
[1762154402397,3.78025726,176.24,176.21,5.67945173]
[1762154402620,11.10384774,176.27,176.2,0.68]
[1762154402621,3.78980042,176.26,176.22,5.67945173]
[1762154402923,3.78980042,176.26,176.2,0.68]
[1762154402924,3.78980042,176.25,176.2,5.67945173]
[1762154403125,5.67945173,176.22,176.11,119.92352028]
[1762154403328,5.67945173,176.22,176.14,5.67945173]
[1762154403329,5.67945173,176.19,176.14,5.67945173]
[1762154403517,5.67945173,176.19,176.14,21.272]
[1762154403834,9.78882769,176.22,176.13,11.35699452]
[1762154403835,6.35945173,176.18,176.13,11.35699452]
[1762154404333,5.67945173,176.19,176.14,6.35945173]
[1762154404707,0.68,176.19,176.14,6.35945173]
[1762154404915,0.68,176.18,176.13,20.592]
[1762154405443,5.67945173,176.14,176.08,5.67920261]
[1762154405603,4.46980042,176.18,176.08,6.35920261]
[1762154405604,5.67945173,176.13,176.08,6.35920261]
[1762154405929,5.67945173,176.14,176.08,12.03865434]
[1762154406103,6.37945173,176.14,176.08,5.67920261]
[1762154406628,6.37945173,176.13,176.08,5.67920261]
[1762154407123,0.7,176.12,176.08,5.67920261]
[1762154407319,0.7,176.16,176.08,19.87729438]
[1762154407503,3.77955382,176.18,176.12,5.67945173]
[1762154407830,19.94783324,176.18,176.12,5.67945173]
[1762154408131,0.7,176.17,176.1,5.67945173]
[1762154408301,5.67945173,176.14,176.08,12.01865434]
[1762154408507,5.67945173,176.14,176.08,6.33920261]
[1762154408725,5.67945173,176.13,176.08,6.33920261]
[1762154408929,5.67945173,176.15,176.09,6.33945173]
[1762154409125,21.292,176.19,176.13,5.67945173]
[1762154409511,0.7,176.19,176.14,5.67730214]
[1762154409838,4.47438796,176.19,176.14,5.67730214]
[1762154410234,3.77438796,176.19,176.14,12.01675387]
[1762154410441,0.7,176.19,176.14,12.01675387]
[1762154410802,6.37945173,176.19,176.14,5.67730214]
[1762154411224,6.37945173,176.19,176.09,5.67891419]
[1762154411225,5.67945173,176.15,176.09,5.67891419]
[1762154411406,5.67945173,176.14,176.09,5.67891419]
[1762154411616,5.67945173,176.13,176.09,5.67891419]
[1762154411820,5.67945173,176.12,176.08,5.6792087]
[1762154412023,0.7,176.13,176.08,5.6792087]
[1762154412218,6.37945173,176.13,176.08,5.6792087]
[1762154412611,5.67945173,176.13,176.08,5.6792087]
[1762154412942,0.7,176.13,176.08,6.3392087]
[1762154413237,0.7,176.13,176.08,12.01866043]
[1762154414933,5.67945173,176.1,176.07,0.2]
[1762154415136,5.67945173,176.11,176.07,0.2]
[1762154415439,0.7,176.11,176.07,5.87936394]
[1762154415613,0.7,176.1,176.07,0.2]
[1762154415811,6.37945173,176.1,176.07,0.2]
[1762154416526,0.7,176.1,176.07,5.87947571]
[1762154417048,0.7,176.14,176.09,5.67945173]
[1762154417246,10.48882769,176.14,176.09,5.67945173]
[1762154417432,5.67945173,176.16,176.1,5.67945173]
[1762154417757,9.78882769,176.16,176.12,5.67794685]
[1762154417954,0.7,176.15,176.12,5.67794685]
[1762154418457,10.14861884,176.15,176.1,5.67833561]
[1762154418643,4.46916711,176.15,176.1,11.35778734]
[1762154418843,0.7,176.15,176.1,12.01778734]
[1762154419238,6.37945173,176.15,176.1,6.33833561]
[1762154419554,10.14869896,176.15,176.1,6.33833561]
[1762154420643,3.76924723,176.15,176.11,6.33945173]
[1762154420846,19.23752665,176.17,176.11,6.33945173]
[1762154421040,3.76924723,176.16,176.11,6.33945173]
[1762154421231,3.76924723,176.16,176.13,5.67945173]
[1762154421432,3.76924723,176.17,176.15,5.67945173]
[1762154421745,3.76924723,176.19,176.16,5.67945173]
[1762154421933,3.76924723,176.21,176.17,5.67945173]
[1762154422140,4.46924723,176.21,176.17,5.67945173]
[1762154422389,3.76924723,176.2,176.18,5.67601316]
[1762154423663,3.76924723,176.22,176.19,5.67945173]
[1762154423864,3.76924723,176.21,176.19,6.33945173]
[1762154424067,3.76924723,176.23,176.19,6.33945173]
[1762154424242,3.76924723,176.22,176.19,6.33945173]
[1762154424441,3.76924723,176.21,176.19,6.33945173]
[1762154424662,32.47985678,176.27,176.18,19.86604608]
[1762154424663,3.7736373,176.23,176.2,12.01482062]
[1762154424863,3.7736373,176.25,176.2,12.01482062]
[1762154425069,3.7736373,176.24,176.21,5.67945173]
[1762154425245,3.7736373,176.25,176.21,5.67945173]
[1762154425571,3.7736373,176.24,176.21,5.67945173]
[1762154425780,3.7736373,176.24,176.2,5.67536889]
[1762154425781,3.7736373,176.23,176.2,11.35482062]
[1762154425967,3.7736373,176.24,176.2,12.03482062]
[1762154426274,3.7736373,176.23,176.21,6.35945173]
[1762154426458,3.7736373,176.26,176.22,5.67945173]
[1762154426658,3.7736373,176.25,176.24,5.67945173]
[1762154426857,3.77666957,176.25,176.24,5.67945173]
[1762154427255,3.77666957,176.25,176.23,5.67945173]
[1762154427459,10.1361213,176.24,176.21,5.67478223]
[1762154427792,3.77666957,176.23,176.21,5.67478223]
[1762154427943,3.77666957,176.22,176.21,5.67478223]
[1762154428650,3.77666957,176.22,176.2,5.67945173]
[1762154428851,3.77666957,176.21,176.2,5.67945173]
[1762154429067,4.45666957,176.24,176.2,5.67945173]
[1762154429285,3.77666957,176.23,176.2,5.67945173]
[1762154429459,3.77666957,176.22,176.21,0.68]
[1762154429660,3.77666957,176.22,176.21,6.35945173]
[1762154430679,3.77666957,176.26,176.21,26.22211558]
[1762154430888,3.77666957,176.25,176.22,5.67945173]
[1762154431165,3.77666957,176.24,176.22,5.67945173]
[1762154431477,3.77666957,176.23,176.22,5.67945173]
[1762154432571,3.77666957,176.23,176.22,12.0341765]
[1762154433472,3.79288666,176.27,176.22,26.22098843]
[1762154433656,5.40083696,176.33,176.26,5.67945173]
[1762154433857,0.68,176.33,176.3,5.67945173]
[1762154434447,0.68,176.33,176.27,5.67304942]
[1762154434673,5.67945173,176.31,176.26,5.67945173]
[1762154434905,5.67945173,176.3,176.25,11.35291389]
[1762154435383,0.68,176.29,176.25,25.53731105]
[1762154435677,0.68,176.31,176.25,20.53785932]
[1762154435872,6.35945173,176.31,176.26,5.67945173]
[1762154436062,0.69,176.3,176.26,5.67945173]
[1762154436679,0.69,176.3,176.27,5.6731151]
[1762154436854,6.36945173,176.3,176.27,5.6731151]
[1762154437397,0.69,176.29,176.27,5.6731151]
[1762154437672,0.69,176.3,176.27,5.6731151]
[1762154437866,20.18911638,176.32,176.27,11.35256683]
[1762154438074,0.69,176.31,176.27,11.35256683]
[1762154438780,0.69,176.31,176.26,5.67343696]
[1762154438983,0.69,176.31,176.27,5.67945173]
[1762154439684,0.69,176.32,176.27,0.72]
[1762154439880,0.69,176.31,176.29,5.67945173]
[1762154440079,0.69,176.31,176.26,19.85702938]
[1762154440271,0.69,176.31,176.29,5.67945173]
[1762154441788,5.41083696,176.33,176.29,11.35178586]
[1762154441962,0.69,176.32,176.29,11.35178586]
[1762154443259,25.31283696,176.34,176.29,11.35178586]
[1762154443592,0.69,176.33,176.31,5.67945173]
[1762154444274,4.72083696,176.34,176.31,5.67945173]
[1762154444478,0.69,176.33,176.31,5.67945173]
[1762154445295,14.50966465,176.35,176.31,11.3511352]
[1762154445480,3.79637638,176.34,176.32,5.67945173]
[1762154445676,3.79637638,176.33,176.32,5.67945173]
[1762154446005,3.79637638,176.33,176.31,5.67945173]
[1762154446161,3.79637638,176.32,176.31,5.67945173]
[1762154446361,3.79637638,176.33,176.31,5.67945173]
[1762154446565,3.79637638,176.32,176.31,5.67945173]
[1762154446782,3.79637638,176.33,176.31,11.35127976]
[1762154446982,3.79637638,176.32,176.31,11.35127976]
[1762154447163,3.79637638,176.33,176.31,5.67945173]
[1762154447381,3.79637638,176.32,176.31,5.67945173]
[1762154447594,3.79637638,176.33,176.31,5.67945173]
[1762154447892,3.79637638,176.32,176.31,5.67945173]
[1762154448074,3.79637638,176.33,176.3,11.35154482]
[1762154448281,3.79637638,176.33,176.31,11.35127976]
[1762154448579,3.79637638,176.33,176.31,7.89903567]
[1762154449407,3.79637638,176.33,176.23,21.15944027]
[1762154449408,2.91720764,176.32,176.23,21.15944027]
[1762154449578,2.22720764,176.3,176.24,2.22720764]
[1762154449776,3.79637638,176.3,176.26,2.22720764]
[1762154449976,3.79637638,176.3,176.27,2.22720764]
[1762154450168,3.79637638,176.31,176.27,2.22720764]
[1762154450373,3.79637638,176.3,176.27,5.6739947]
[1762154450572,0.69,176.3,176.27,5.6739947]
[1762154451101,3.79637638,176.31,176.27,5.6739947]
[1762154451270,4.48637638,176.31,176.27,5.6739947]
[1762154453085,4.48637638,176.31,176.27,11.34700367]
[1762154454794,4.48637638,176.31,176.27,5.67300897]
[1762154454988,0.69,176.3,176.27,5.67300897]
[1762154455182,3.79637638,176.31,176.27,11.34700367]
[1762154455386,0.69,176.31,176.28,5.6739947]
[1762154456715,0.69,176.31,176.27,11.34700367]
[1762154457105,3.79637638,176.32,176.28,5.6739947]
[1762154457433,0.69,176.31,176.28,5.6739947]
[1762154457917,3.79637638,176.32,176.28,5.6739947]
[1762154458119,4.48637638,176.33,176.28,5.6739947]
[1762154458297,15.831565,176.33,176.28,5.6739947]
[1762154458613,4.48637638,176.32,176.28,5.6739947]
[1762154458790,4.48637638,176.32,176.27,11.34700367]
[1762154458992,0.69,176.31,176.27,11.34700367]
[1762154459605,0.69,176.31,176.27,5.6739947]
[1762154459935,30.75237108,176.31,176.26,11.34743027]
[1762154460086,3.79637638,176.3,176.26,5.67343557]
[1762154460407,3.79637638,176.29,176.26,5.67343557]
[1762154460620,4.48637638,176.29,176.26,5.67343557]
[1762154460805,7.90481224,176.27,176.21,7.90481224]
[1762154460992,11.70118862,176.26,176.2,7.90481224]
[1762154461223,17.69363993,176.22,176.16,0.72]
[1762154461397,3.79905967,176.21,176.16,7.90481224]
[1762154461602,3.79905967,176.2,176.14,0.72]
[1762154461822,4.48905967,176.2,176.14,0.72]
[1762154462002,12.39387191,176.19,176.13,7.90481224]
[1762154462205,9.78882769,176.16,176.11,7.90481224]
[1762154462425,21.4926996,176.16,176.11,7.90481224]
[1762154462628,9.78882769,176.14,176.08,0.72]
[1762154462795,21.4926996,176.14,176.08,13.584025]
[1762154462994,17.69363993,176.14,176.08,7.90481224]
[1762154463204,6.36762448,176.13,176.08,7.90481224]
[1762154463417,18.07122577,176.13,176.07,8.10481224]
[1762154463699,8.59481224,176.12,176.07,8.10481224]
[1762154464100,13.58243672,176.13,176.07,13.78431804]
[1762154464323,0.69,176.12,176.07,6.5995058]
[1762154464646,0.69,176.12,176.09,7.90481224]
[1762154464805,9.78882769,176.09,176.07,0.2]
[1762154465002,13.58722749,176.09,176.07,0.2]
[1762154465202,14.27722749,176.09,176.07,0.2]
[1762154465420,0.69,176.08,176.07,0.2]
[1762154465806,10.47882769,176.08,176.07,0.2]
[1762154466004,14.27722749,176.08,176.07,0.2]
[1762154466410,10.47882769,176.08,176.07,0.2]
[1762154466923,14.27722749,176.08,176.07,0.2]
[1762154467305,10.47882769,176.08,176.07,0.2]
[1762154468232,0.72,176.14,176.07,14.49434197]
[1762154468529,9.78882769,176.12,176.09,7.90481224]
[1762154468824,17.69363993,176.12,176.07,0.2]
[1762154469030,4.50545278,176.11,176.08,7.90481224]
[1762154469204,13.57428047,176.13,176.09,7.90481224]
[1762154469422,14.29428047,176.13,176.09,7.90481224]
[1762154469629,0.72,176.12,176.09,7.90481224]
[1762154470854,14.30279929,176.12,176.07,8.10481224]
[1762154471133,14.30279929,176.12,176.07,0.2]
[1762154471326,0.72,176.11,176.07,0.2]
[1762154471519,0.72,176.11,176.07,8.10481224]
[1762154471731,5.67798705,176.12,176.07,8.10481224]
[1762154471732,3.77899133,176.12,176.1,7.90481224]
[1762154471931,3.77993948,176.18,176.11,7.90481224]
[1762154472225,7.90481224,176.18,176.13,13.58228045]
[1762154472486,7.90481224,176.15,176.09,5.67869907]
[1762154472605,7.90481224,176.15,176.09,13.58351131]
[1762154472805,7.90481224,176.15,176.09,14.29351131]
[1762154473004,18.41363993,176.16,176.09,6.38869907]
[1762154473228,7.90481224,176.15,176.09,6.38869907]
[1762154473438,7.90481224,176.15,176.11,5.67826926]
[1762154473739,7.90481224,176.15,176.1,13.58318755]
[1762154473915,8.62481224,176.15,176.1,14.29318755]
[1762154474606,0.72,176.14,176.07,14.39835447]
[1762154474813,7.90481224,176.1,176.07,0.2]
[1762154475243,8.62481224,176.1,176.07,0.2]
[1762154476435,8.62481224,176.1,176.07,5.87941812]
[1762154476630,8.62481224,176.1,176.07,0.2]
[1762154476831,8.62481224,176.1,176.07,5.87954413]
[1762154477034,7.90481224,176.1,176.07,5.87954413]
[1762154477452,0.72,176.15,176.09,13.58372643]
[1762154477637,17.69363993,176.14,176.09,5.67891419]
[1762154477949,7.90481224,176.1,176.07,0.2]
[1762154478127,7.90481224,176.1,176.07,5.87955379]
[1762154478548,7.90481224,176.1,176.07,0.2]
[1762154478844,8.62481224,176.1,176.07,0.2]
[1762154479251,8.62481224,176.1,176.07,5.87953895]
[1762154479423,9.78882769,176.16,176.1,5.6785917]
[1762154479742,7.90481224,176.15,176.08,6.38891762]
[1762154479959,7.90481224,176.15,176.08,14.29372986]
[1762154479960,7.90481224,176.14,176.08,14.29372986]
[1762154480137,8.62481224,176.14,176.08,28.49182163]
[1762154480526,7.90481224,176.13,176.08,6.38891762]
[1762154480724,7.90481224,176.13,176.08,14.29372986]
[1762154480946,8.62481224,176.13,176.08,14.29372986]
[1762154481336,8.62481224,176.13,176.07,5.87955611]
[1762154481647,7.90481224,176.11,176.07,5.87955611]
[1762154482032,7.90481224,176.11,176.07,6.58955611]
[1762154482647,8.62481224,176.11,176.07,0.2]
[1762154482849,8.62481224,176.11,176.07,5.87953402]
[1762154483050,8.62481224,176.11,176.07,6.58953402]
[1762154483434,7.90481224,176.12,176.09,5.67891419]
[1762154483833,8.62481224,176.12,176.09,5.67891419]
[1762154484042,17.69363993,176.14,176.09,14.29372643]
[1762154484244,17.69363993,176.14,176.1,0.71]
[1762154484447,18.41363993,176.14,176.09,6.38891419]
[1762154485338,7.90481224,176.14,176.1,0.71]
[1762154485648,7.90481224,176.14,176.1,6.38841176]
[1762154485851,8.56481224,176.14,176.1,6.38841176]
[1762154486055,0.66,176.14,176.1,6.38841176]
[1762154486256,8.56481224,176.14,176.1,5.67841176]
[1762154486452,7.90481224,176.13,176.09,5.67887571]
[1762154486653,7.90481224,176.13,176.08,0.7]
[1762154486836,7.90481224,176.13,176.08,6.37923161]
[1762154487036,0.66,176.14,176.08,6.37923161]
[1762154487239,7.90481224,176.13,176.08,14.28404385]
[1762154487757,11.6746421,176.14,176.09,0.7]